bitfinex-derivatives/quotes_ETHF0:USTF0_20251213
["timestamp","ask_amount","ask_price","bid_price","bid_amount"]
[1765593289538,2.20336345,3084.6,3084.5,1.9394]
[1765593289932,1.50987836,3084.6,3084.5,1.9394]
[1765593295242,4.71767836,3084.6,3084.5,1.9394]
[1765593301247,4.71767836,3084.6,3084.5,1.1907]
[1765593306364,4.71767836,3084.6,3084.5,1.9447]
[1765593308964,1.50987836,3084.6,3084.5,1.9447]
[1765593313264,2.49299584,3084.6,3084.5,1.9447]
[1765593341685,0.98689584,3084.6,3084.5,1.9447]
[1765593341893,0.00377836,3084.6,3084.5,1.9447]
[1765593342091,0.75397836,3084.6,3084.5,1.9447]
[1765593345593,0.00377836,3084.6,3084.5,1.9447]
[1765593347795,1.47077836,3084.6,3084.5,0.4278]
[1765593347985,1.47077836,3084.6,3084.5,1.154]
[1765593348387,1.47077836,3084.6,3084.5,1.8974]
[1765593352202,0.75397836,3084.6,3084.5,1.8974]
[1765593357709,0.00377836,3084.6,3084.5,1.8974]
[1765593360714,0.73727836,3084.6,3084.5,1.8974]
[1765593363608,0.00377836,3084.6,3084.5,1.8974]
[1765593364714,0.00486042,3084.9,3084.8,1.4139]
[1765593365819,0.00771007,3084.9,3084.8,1.4139]
[1765593375823,0.00771007,3084.9,3084.8,4.6217]
[1765593376023,3.87091721,3085.4,3085.3,1.4139]
[1765593376327,3.2078,3085.5,3085.4,1.4139]
[1765593376918,3.21154399,3085.5,3085.4,1.4139]
[1765593378523,0.00374399,3085.5,3085.4,1.4139]
[1765593378731,3.2078,3085.9,3085.8,1.4139]
[1765593378928,3.2078,3085.9,3085.8,2.10751399]
[1765593379327,3.2078,3085.9,3085.8,2.10676785]
[1765593379726,3.21018135,3085.9,3085.8,2.10676785]
[1765593380927,0.00238135,3085.9,3085.8,2.10676785]
[1765593381131,0.00486042,3086.2,3086.1,1.4147]
[1765593381328,0.00486042,3086.2,3086.1,2.10756785]
[1765593382029,0.00715229,3086.2,3086.1,2.11032999]
[1765593382527,3.2078,3087.3,3087.2,1.4574]
[1765593382733,3.2078,3087.3,3087.2,0.7183]
[1765593382734,4.7436,3087.3,3087.2,0.7183]
[1765593382933,1.5358,3087.1,3087.0,1.9084]
[1765593383627,1.53842939,3087.1,3087.0,1.9084]
[1765593384226,1.5358,3086.8,3086.7,0.00486042]
[1765593384427,5.43646785,3086.8,3086.7,0.00486042]
[1765593386027,5.43646785,3086.8,3086.7,1.46226042]
[1765593386227,5.43646785,3086.8,3086.7,0.72316042]
[1765593386627,4.7436,3086.8,3086.7,1.46226042]
[1765593386835,5.43646785,3086.8,3086.7,1.46226042]
[1765593387731,4.7436,3086.8,3086.7,1.46226042]
[1765593388335,4.7436,3086.8,3086.7,0.72316042]
[1765593388535,5.43646785,3086.8,3086.7,0.72316042]
[1765593389840,5.43646785,3086.8,3086.7,1.46226042]
[1765593391439,1.5358,3086.8,3086.7,1.46226042]
[1765593392531,0.7581,3086.8,3086.7,1.46226042]
[1765593396039,1.5358,3086.8,3086.7,0.00486042]
[1765593396242,4.7436,3086.8,3086.7,0.00486042]
[1765593396641,4.7436,3086.8,3086.7,0.72316042]
[1765593396839,4.7436,3086.8,3086.7,0.00486042]
[1765593403250,4.7436,3086.8,3086.7,0.72316042]
[1765593407848,4.7436,3086.8,3086.7,0.00486042]
[1765593409148,5.72194983,3086.8,3086.7,0.00486042]
[1765593410254,5.72246726,3086.8,3086.7,0.00486042]
[1765593411453,2.51466726,3086.8,3086.7,0.00486042]
[1765593411649,3.20740508,3086.8,3086.7,0.00486042]
[1765593417657,1.4812,3086.2,3086.1,0.00276214]
[1765593417855,2.17393782,3086.2,3086.1,0.00276214]
[1765593419961,2.17431371,3086.2,3086.1,0.00276214]
[1765593420458,5.38211371,3086.2,3086.1,0.00276214]
[1765593420654,6.3627704,3086.2,3086.1,0.00276214]
[1765593421456,5.38211371,3086.2,3086.1,0.00276214]
[1765593422656,3.9162,3086.2,3086.1,1.51586214]
[1765593423049,4.689,3086.2,3086.1,1.51586214]
[1765593423450,3.9162,3086.2,3086.1,1.51586214]
[1765593423752,4.689,3086.2,3086.1,1.51586214]
[1765593428963,3.9162,3086.2,3086.1,1.51586214]
[1765593429556,4.689,3086.2,3086.1,1.51586214]
[1765593429761,3.2078,3086.2,3086.1,1.51586214]
[1765593429952,3.9162,3086.2,3086.1,1.51586214]
[1765593431961,4.689,3086.2,3086.1,1.51586214]
[1765593432257,3.9162,3086.2,3086.1,1.51586214]
[1765593435862,4.689,3086.2,3086.1,1.51586214]
[1765593438062,4.689,3086.2,3086.1,0.00276214]
[1765593438761,4.689,3086.2,3086.1,0.77846214]
[1765593439257,4.689,3086.2,3086.1,0.00276214]
[1765593439461,1.4798,3085.9,3085.8,0.00486042]
[1765593439661,2.17291371,3085.9,3085.8,0.00486042]
[1765593440559,2.17291371,3085.9,3085.8,0.00776894]
[1765593443661,2.17299251,3085.9,3085.8,0.00776894]
[1765593444064,1.4798,3085.9,3085.8,1.49576894]
[1765593444466,1.4798,3085.9,3085.8,0.71806894]
[1765593450971,1.4798,3085.9,3085.8,0.00776894]
[1765593451880,1.4798,3085.9,3085.8,0.71806894]
[1765593455277,1.4713,3085.9,3085.8,1.49576894]
[1765593456690,1.4713,3085.9,3085.8,0.00776894]
[1765593468699,1.4713,3085.9,3085.8,1.49576894]
[1765593468903,0.7285,3085.9,3085.8,1.49576894]
[1765593480516,1.4397,3085.9,3085.8,1.49576894]
[1765593483616,0.7285,3085.9,3085.8,1.49576894]
[1765593484516,1.45044303,3086.0,3085.9,1.4821]
[1765593484917,2.16164303,3086.0,3085.9,1.4821]
[1765593486919,0.69304303,3086.0,3085.9,1.4821]
[1765593487219,2.16164303,3086.3,3086.2,1.4821]
[1765593487418,3.14569339,3086.3,3086.2,1.4821]
[1765593487611,2.45265036,3086.3,3086.2,1.4821]
[1765593487813,3.14569339,3086.3,3086.2,1.4821]
[1765593488117,3.2078,3086.4,3086.3,1.4821]
[1765593488323,4.94920977,3086.4,3086.3,1.4821]
[1765593488621,5.66040977,3086.4,3086.3,1.4821]
[1765593489420,4.6764,3086.4,3086.3,1.4821]
[1765593490830,1.4686,3086.4,3086.3,1.4821]
[1765593495424,1.4686,3086.4,3086.3,0.7786]
[1765593495925,1.4686,3086.4,3086.3,1.4821]
[1765593496528,0.7574,3086.1,3086.0,1.9237]
[1765593496729,1.4686,3086.1,3086.0,1.9237]
[1765593496921,1.4686,3085.9,3085.8,4.69766894]
[1765593497826,0.7574,3085.9,3085.8,4.69766894]
[1765593500926,0.7574,3085.9,3085.8,1.48986894]
[1765593501122,0.69304303,3086.4,3085.8,4.69766894]
[1765593502030,3.21266042,3086.5,3086.4,1.4918]
[1765593502231,4.97050338,3086.5,3086.4,1.4918]
[1765593502527,5.71690338,3086.5,3086.4,1.4918]
[1765593503332,5.71690338,3086.5,3086.4,0.7662]
[1765593503628,5.71690338,3086.5,3086.0,0.4375]
[1765593503830,2.21514303,3086.4,3086.3,0.7662]
[1765593505328,2.21514303,3086.4,3086.3,1.4918]
[1765593505828,1.5221,3086.4,3086.3,1.4918]
[1765593509932,1.5221,3086.4,3086.3,0.7662]
[1765593510235,0.7757,3086.1,3086.0,1.9293]
[1765593511333,1.5221,3086.1,3086.0,1.9293]
[1765593515337,0.7757,3086.1,3086.0,1.9293]
[1765593515538,2.21492117,3086.4,3086.3,0.7662]
[1765593515737,3.19770069,3086.4,3086.3,0.7662]
[1765593518432,3.19770069,3086.4,3086.3,1.4918]
[1765593520141,3.19770069,3086.4,3086.3,0.7662]
[1765593539763,2.50487952,3086.4,3086.3,0.7662]
[1765593540667,0.7155,3086.1,3086.0,1.8764]
[1765593543172,0.00486042,3086.5,3086.0,1.8764]
[1765593543371,2.43118843,3086.4,3086.3,0.7162]
[1765593543670,2.43118843,3086.4,3086.3,1.4389]
[1765593543970,1.4485,3086.4,3086.3,1.4389]
[1765593546371,0.7155,3086.4,3086.3,1.4389]
[1765593547573,1.4485,3086.4,3086.3,1.4389]
[1765593548469,0.72036042,3086.5,3086.4,1.4389]
[1765593548676,1.7029025,3086.5,3086.4,1.4389]
[1765593549070,2.4359025,3086.5,3086.4,1.4389]
[1765593549374,0.00486042,3086.5,3086.4,1.4389]
[1765593559781,0.00486042,3086.5,3086.4,4.6467]
[1765593572885,3.21042939,3087.1,3087.0,1.923]
[1765593581595,4.7467,3087.6,3087.5,0.7043]
[1765593581987,0.7594,3087.2,3087.1,2.16856736]
[1765593582389,4.7467,3087.6,3087.5,1.923]
[1765593582693,4.75023885,3087.6,3087.5,1.1513]
[1765593582894,4.75023885,3087.6,3087.5,0.447]
[1765593583087,4.75023885,3087.6,3087.1,0.69256736]
[1765593585295,4.75023885,3087.6,3087.5,1.923]
[1765593585496,3.97073885,3087.6,3087.5,1.923]
[1765593585798,4.75023885,3087.6,3087.5,1.923]
[1765593586194,4.75023885,3087.6,3087.5,1.1513]
[1765593586396,4.75023885,3087.6,3087.5,1.923]
[1765593587198,4.75023885,3087.6,3087.5,1.1513]
[1765593590295,4.75023885,3087.6,3087.5,0.447]
[1765593590492,4.75023885,3087.6,3087.1,0.69256736]
[1765593592402,0.7727,3087.2,3087.1,2.20626736]
[1765593595207,3.21133885,3087.6,3087.1,2.20626736]
[1765593595705,4.69283885,3087.6,3087.5,0.7611]
[1765593597008,1.48503885,3087.6,3087.5,0.7611]
[1765593597209,0.7727,3087.3,3087.2,4.7215]
[1765593600217,0.77623885,3087.6,3087.5,1.95]
[1765593600419,0.00353885,3087.6,3087.5,1.95]
[1765593600917,0.77623885,3087.6,3087.5,1.95]
[1765593601618,1.48503885,3087.6,3087.5,1.95]
[1765593601814,0.7727,3087.3,3087.2,4.7215]
[1765593602022,0.7727,3087.3,3087.2,5.41370273]
[1765593604318,0.7727,3087.3,3087.2,5.41370478]
[1765593606422,0.7727,3087.3,3087.2,4.7215]
[1765593606722,1.4815,3087.3,3087.2,3.2078]
[1765593607524,0.7727,3086.9,3086.8,5.41370478]
[1765593608119,1.4815,3086.9,3086.8,5.41370478]
[1765593609230,0.7727,3086.9,3086.8,5.41370478]
[1765593612123,2.17370478,3086.9,3086.8,3.2078]
[1765593612324,1.4815,3086.1,3086.0,5.159]
[1765593614125,0.7727,3086.1,3086.0,5.159]
[1765593614624,1.02520478,3086.5,3086.0,5.159]
[1765593614828,1.4815,3086.5,3086.4,1.5137]
[1765593615721,2.17370478,3086.5,3086.4,1.5137]
[1765593618431,2.17370478,3086.5,3086.4,0.7611]
[1765593619928,2.17370478,3086.5,3086.4,1.5137]
[1765593621333,2.17370478,3086.5,3086.4,0.7611]
[1765593621734,1.435,3086.1,3086.0,5.1139]
[1765593622134,0.7225,3086.1,3086.0,5.1139]
[1765593625138,2.17730478,3086.5,3086.4,0.767]
[1765593625327,2.17730478,3086.5,3086.4,1.491]
[1765593626842,2.17730478,3086.5,3086.4,0.767]
[1765593627044,2.17730478,3086.5,3086.4,1.491]
[1765593631138,0.7621,3086.6,3086.5,1.9483]
[1765593632833,1.4851,3086.6,3086.5,1.9483]
[1765593633034,5.3511,3086.9,3086.8,1.491]
[1765593633234,1.4851,3086.9,3086.8,1.491]
[1765593636245,6.04330478,3087.2,3087.1,1.491]
[1765593637241,5.3511,3087.2,3087.1,1.491]
[1765593638742,1.4851,3087.2,3087.1,1.491]
[1765593639047,1.4851,3087.2,3087.1,0.767]
[1765593639746,1.4851,3087.1,3087.0,1.2243]
[1765593639947,1.4851,3087.1,3087.0,1.9483]
[1765593641341,3.2078,3087.3,3087.2,1.491]
[1765593641542,3.2078,3087.3,3087.2,2.1835062]
[1765593641743,1.48863885,3087.6,3087.5,1.9483]
[1765593641945,0.00353885,3087.6,3087.5,1.9483]
[1765593642748,0.76563885,3087.6,3087.5,1.9483]
[1765593643349,0.00353885,3087.6,3087.5,1.9483]
[1765593643850,0.76563885,3087.6,3087.5,1.9483]
[1765593646846,1.48863885,3087.6,3087.5,1.9483]
[1765593649445,1.48863885,3087.6,3087.5,0.767]
[1765593649650,1.4851,3087.4,3087.3,2.1835062]
[1765593656055,1.50083885,3087.6,3087.5,1.9639]
[1765593656252,1.50083885,3087.6,3087.5,0.745]
[1765593663365,1.4973,3087.3,3087.2,4.7139]
[1765593666661,1.4973,3087.3,3087.2,1.5061]
[1765593667161,1.4973,3087.3,3087.2,0.745]
[1765593667567,1.4973,3087.3,3087.2,1.5061]
[1765593670972,1.4973,3087.3,3087.2,0.745]
[1765593672065,1.4973,3087.1,3087.0,5.1712]
[1765593673566,1.4973,3087.1,3087.0,3.2078]
[1765593673773,1.4973,3087.1,3087.0,3.9528]
[1765593673976,0.69592011,3087.6,3087.0,5.1717]
[1765593674272,2.47672552,3087.5,3087.4,0.745]
[1765593674464,0.7548,3087.1,3087.0,5.1717]
[1765593676073,1.4973,3087.1,3087.0,4.4106]
[1765593676570,1.4973,3087.1,3087.0,3.2078]
[1765593680178,1.4973,3087.1,3087.0,3.9528]
[1765593681679,1.4973,3087.1,3087.0,0.745]
[1765593683180,1.4973,3087.1,3087.0,1.4685]
[1765593683371,1.4973,3087.1,3087.0,1.9159]
[1765593691190,0.7548,3087.1,3087.0,1.9159]
[1765593696392,1.4815,3087.1,3087.0,1.9159]
[1765593697495,0.7548,3087.1,3087.0,1.9159]
[1765593698194,1.4815,3087.1,3087.0,1.9159]
[1765593698394,0.7548,3087.1,3087.0,1.9159]
[1765593698797,1.4815,3087.1,3087.0,1.9159]
[1765593700394,1.4815,3087.1,3087.0,1.1924]
[1765593700588,1.4815,3087.1,3087.0,0.745]
[1765593701596,1.4815,3087.1,3087.0,1.4685]
[1765593703498,1.4815,3087.1,3087.0,1.9159]
[1765593713199,2.17410628,3087.1,3087.0,0.745]
[1765593713401,1.4455,3086.7,3086.6,4.6336]
[1765593713598,1.4455,3086.7,3086.6,3.2078]
[1765593713903,2.42804096,3086.7,3086.6,3.2078]
[1765593714100,0.735,3086.2,3086.1,4.6336]
[1765593714299,1.4455,3086.2,3086.1,4.6336]
[1765593714503,0.735,3086.2,3086.1,4.6336]
[1765593715197,1.4455,3086.2,3086.1,3.2078]
[1765593715804,1.4455,3086.2,3086.1,3.9264]
[1765593719014,1.4455,3086.2,3086.1,4.6336]
[1765593721510,1.4455,3085.9,3085.8,1.43356894]
[1765593721719,2.13810628,3085.9,3085.8,0.00776894]
[1765593722108,2.13810628,3085.9,3085.8,0.72636894]
[1765593722704,2.13810628,3085.9,3085.8,0.00776894]
[1765593723222,3.2078,3086.2,3086.1,1.4258]
[1765593723911,3.9428,3086.2,3086.1,1.4258]
[1765593726217,4.6533,3086.2,3086.1,1.4258]
[1765593726422,1.4455,3086.1,3086.0,0.7186]
[1765593726624,2.13848029,3086.1,3086.0,0.7186]
[1765593730324,1.4455,3085.9,3085.8,1.43356894]
[1765593730726,4.6533,3086.2,3086.1,0.7186]
[1765593730923,5.34628029,3086.2,3086.1,1.4258]
[1765593735029,5.34636364,3086.2,3086.1,1.4258]
[1765593735330,3.9428,3086.2,3086.1,1.4258]
[1765593735530,3.90086364,3086.2,3086.1,1.4258]
[1765593736029,5.34636364,3086.2,3086.1,1.4258]
[1765593736839,2.13856364,3086.2,3086.1,1.4258]
[1765593744138,3.12403261,3086.2,3086.1,1.4258]
[1765593750349,2.43096897,3086.2,3086.1,1.4258]
[1765593750549,3.12403261,3086.2,3086.1,1.4258]
[1765593757762,0.98546897,3086.2,3086.1,1.4258]
[1765593760767,3.2078,3086.4,3086.3,1.4625]
[1765593760967,4.1942193,3086.4,3086.3,1.4625]
[1765593761469,4.9244193,3086.4,3086.3,1.4625]
[1765593765564,4.1942193,3086.4,3086.3,1.4625]
[1765593766770,3.2078,3086.4,3086.3,2.15556364]
[1765593766972,3.2078,3086.4,3086.3,2.15522505]
[1765593770866,3.2078,3086.8,3086.7,1.4625]
[1765593771072,3.2078,3087.3,3087.2,1.4625]
[1765593771262,3.938,3087.3,3087.2,2.15522505]
[1765593776274,4.705,3087.3,3087.2,2.15522505]
[1765593778480,3.938,3087.3,3087.2,2.15522505]
[1765593779483,0.7302,3087.3,3087.2,2.15522505]
[1765593779782,1.4972,3087.3,3087.2,2.15522505]
[1765593780484,0.7302,3087.3,3087.2,2.15522505]
[1765593783485,0.7302,3087.3,3087.2,1.4625]
[1765593783686,0.7302,3087.3,3087.2,2.15522505]
[1765593783887,0.7302,3087.3,3087.2,1.4625]
[1765593786386,3.2078,3087.4,3087.3,1.4218]
[1765593787385,3.965,3087.4,3087.3,1.4218]
[1765593787778,4.732,3087.4,3087.3,1.4218]
[1765593788285,3.2078,3087.4,3087.3,1.4218]
[1765593788487,0.00353885,3087.6,3087.5,1.8472]
[1765593788689,1.52773885,3087.6,3087.5,1.8472]
[1765593790383,1.52773885,3087.6,3087.5,1.1325]
[1765593792789,1.52773885,3087.6,3087.5,0.7071]
[1765593793692,1.52773885,3087.6,3087.1,3.90015517]
[1765593793990,0.7572,3087.2,3087.1,5.32195517]
[1765593794990,1.5242,3087.2,3087.1,3.2078]
[1765593795193,1.5242,3086.8,3086.7,4.6296]
[1765593796793,0.7572,3086.8,3086.7,4.6296]
[1765593797889,1.5242,3086.8,3086.7,4.6296]
[1765593798289,1.5242,3086.8,3086.7,3.9149]
[1765593799094,1.5242,3086.8,3086.7,4.6296]
[1765593799798,3.90043023,3087.4,3086.7,4.6296]
[1765593800101,0.7308,3086.8,3086.7,4.6296]
[1765593800303,1.4853,3086.8,3086.7,4.6296]
[1765593801294,1.4853,3086.8,3086.7,1.4218]
[1765593806199,0.7308,3086.8,3086.7,1.4218]
[1765593807000,13.078,3087.3,3086.7,1.4218]
[1765593810201,3.866,3087.3,3086.7,1.4218]
[1765593810902,15.37043023,3087.4,3086.7,1.4218]
[1765593811102,0.98357631,3087.3,3086.7,1.4218]
[1765593813004,0.98357631,3087.3,3087.2,1.4912]
[1765593813204,1.71377631,3087.3,3087.2,1.4912]
[1765593813506,2.42017631,3087.3,3087.2,1.4912]
[1765593814105,1.4366,3087.3,3087.2,1.4912]
[1765593814301,2.42010138,3087.3,3087.2,1.4912]
[1765593815107,1.4366,3087.3,3087.2,1.4912]
[1765593816801,1.44013885,3087.6,3087.5,1.4912]
[1765593817008,2.42357289,3087.6,3087.5,0.7125]
[1765593820411,2.42357289,3087.6,3087.5,1.4912]
[1765593821011,2.42357289,3087.6,3087.5,0.7125]
[1765593825022,2.42357289,3087.6,3087.0,0.4409]
[1765593825217,2.42003404,3087.5,3087.4,0.7125]
[1765593826726,2.42003404,3087.5,3087.4,1.4912]
[1765593826925,2.42003404,3087.5,3087.4,0.7125]
[1765593829528,2.42003404,3087.5,3087.4,1.4912]
[1765593830125,1.71363404,3087.5,3087.4,1.4912]
[1765593830528,0.7302,3087.5,3087.4,1.4912]
[1765593830729,0.73373885,3087.6,3087.5,1.9321]
[1765593830931,1.71811277,3087.6,3087.5,1.9321]
[1765593831131,2.42451277,3087.6,3087.5,1.9321]
[1765593834835,1.44013885,3087.6,3087.5,1.9321]
[1765593836038,0.73373885,3087.6,3087.5,1.9321]
[1765593838238,0.00353885,3087.6,3087.5,1.9321]
[1765593838444,0.76453885,3087.6,3087.5,1.9321]
[1765593840240,1.49013885,3087.6,3087.5,0.7125]
[1765593840840,1.49013885,3087.6,3087.5,1.8974]
[1765593843634,1.49013885,3087.6,3087.5,0.7125]
[1765593843834,1.49013885,3087.6,3087.1,3.2078]
[1765593844045,2.47200307,3087.6,3087.5,0.7682]
[1765593844341,1.49013885,3087.6,3087.5,0.7682]
[1765593844544,2.47200307,3087.6,3087.5,0.7682]
[1765593844738,1.49013885,3087.6,3087.5,0.7682]
[1765593845041,2.47200307,3087.6,3087.5,0.7682]
[1765593845242,1.49013885,3087.6,3087.1,3.2078]
[1765593845432,2.47200307,3087.6,3087.1,3.2078]
[1765593845637,1.49013885,3087.6,3087.1,3.2078]
[1765593845838,2.47200307,3087.6,3087.1,3.2078]
[1765593846042,1.49013885,3087.6,3087.1,3.90017788]
[1765593849358,0.761,3087.2,3087.1,5.39337788]
[1765593850550,0.00353885,3087.6,3087.1,5.39337788]
[1765593852750,0.761,3087.2,3087.1,5.39337788]
[1765593853153,1.49013885,3087.6,3087.5,0.7682]
[1765593853451,2.47229129,3087.6,3087.5,0.7682]
[1765593853951,2.47229129,3087.6,3087.5,1.4932]
[1765593854153,2.47229129,3087.6,3087.5,1.9531]
[1765593858655,2.47229129,3087.6,3087.1,0.69237788]
[1765593858857,1.49013885,3087.6,3087.1,0.69237788]
[1765593859152,1.4866,3087.1,3087.0,3.2078]
[1765593859359,1.5321,3086.6,3086.5,1.1787]
[1765593859650,1.5321,3086.6,3086.5,1.9136]
[1765593862258,1.4772,3087.0,3086.9,1.4774]
[1765593863456,1.4772,3087.0,3086.9,0.7477]
[1765593864259,1.4772,3087.0,3086.9,1.4774]
[1765593871756,0.7511,3086.6,3086.5,1.9322]
[1765593871961,0.69256687,3087.1,3086.5,1.9322]
[1765593872161,2.16976687,3087.1,3087.0,0.7477]
[1765593872657,2.16976687,3087.1,3086.5,0.4548]
[1765593875666,0.7511,3086.6,3086.5,1.9322]
[1765593876266,0.69256687,3087.1,3086.5,1.9322]
[1765593876459,2.16976687,3087.1,3087.0,0.7477]
[1765593877067,2.16976687,3087.1,3086.5,0.4548]
[1765593878263,2.16976687,3087.1,3087.0,0.7477]
[1765593878469,2.16976687,3087.1,3087.0,1.9245]
[1765593878867,2.16976687,3087.1,3087.0,1.1948]
[1765593879170,2.16976687,3087.1,3087.0,0.7477]
[1765593879967,0.7511,3086.7,3086.6,1.4774]
[1765593880163,1.4772,3086.7,3086.6,1.4774]
[1765593882371,1.4772,3086.7,3086.6,0.7477]
[1765593884774,1.4772,3086.7,3086.6,1.4774]
[1765593885568,1.4772,3086.7,3086.6,0.7477]
[1765593886277,1.4772,3086.7,3086.6,1.4774]
[1765593887093,1.4772,3086.7,3086.6,0.7477]
[1765593889885,0.69256687,3086.8,3086.4,3.2078]
[1765593889886,1.4772,3086.5,3086.4,3.2078]
[1765593890187,1.4772,3086.1,3086.0,5.1502]
[1765593890580,0.7511,3086.1,3086.0,5.1502]
[1765593892387,0.7377,3086.1,3086.0,5.1785]
[1765593894582,0.7377,3086.1,3086.0,1.9707]
[1765593894790,1.4784,3086.1,3086.0,1.9707]
[1765593895293,1.4784,3086.1,3085.8,0.70033581]
[1765593895294,1.4784,3085.9,3085.8,1.51346894]
[1765593895791,0.7377,3085.9,3085.8,1.51346894]
[1765593897695,2.17141592,3085.9,3085.8,0.00776894]
[1765593899590,3.15400938,3085.9,3085.8,0.00776894]
[1765593901598,1.4784,3085.3,3085.2,3.2078]
[1765593901901,1.43071592,3085.6,3085.5,1.9389]
[1765593902094,2.17141592,3085.6,3085.5,1.9389]
[1765593902603,2.17545022,3085.6,3085.5,1.16860656]
[1765593902995,2.17545022,3085.6,3085.5,1.94180656]
[1765593908000,1.4824343,3085.6,3085.5,1.94180656]
[1765593909301,1.4824343,3085.6,3085.5,1.16860656]
[1765593910001,1.4824343,3085.6,3085.5,1.94180656]
[1765593915703,0.0040343,3085.6,3085.5,1.94180656]
[1765593939217,0.0040343,3085.6,3085.5,7.94180656]
[1765593939622,0.0040343,3085.6,3085.5,1.94180656]
[1765593939820,0.0040343,3085.6,3085.5,7.94180656]
[1765593940022,0.0040343,3085.6,3085.5,1.94180656]
[1765593940222,3.2078,3086.5,3086.4,1.4819]
[1765593940523,3.9317,3086.5,3086.4,1.4819]
[1765593940822,5.6745919,3086.5,3086.4,1.4819]
[1765593941029,3.2078,3086.5,3086.4,1.4819]
[1765593941227,3.21100729,3086.5,3086.4,1.4819]
[1765593955437,0.00320729,3086.5,3086.4,1.4819]
[1765593969947,0.00320729,3086.5,3086.4,2.17442797]
[1765593977858,0.00320729,3086.5,3086.4,0.7762]
[1765593978057,1.45790729,3086.5,3086.4,1.5373]
[1765593979062,0.71350729,3086.5,3086.4,1.5373]
[1765593981659,1.45790729,3086.5,3086.4,1.5373]
[1765593983257,0.71350729,3086.5,3086.4,1.5373]
[1765593983458,1.47000729,3086.5,3086.4,0.7762]
[1765593983658,1.47000729,3086.5,3086.4,1.5381]
[1765593994679,0.71350729,3086.5,3086.4,1.5381]
[1765594014401,0.00320729,3086.5,3086.4,1.5381]
[1765594014796,0.77450729,3086.5,3086.4,1.5381]
[1765594015897,1.52790729,3086.5,3086.4,0.7762]
[1765594016696,1.52790729,3086.5,3086.4,1.5385]
[1765594016897,1.52790729,3086.5,3086.4,0.7762]
[1765594017089,1.52790729,3086.5,3086.3,3.2078]
[1765594017090,1.5247,3086.4,3086.3,3.2078]
[1765594017293,1.5247,3086.4,3086.3,3.9471]
[1765594018703,1.5247,3086.4,3086.3,4.7094]
[1765594022105,0.7713,3086.4,3086.3,4.7094]
[1765594022902,0.00320729,3086.5,3086.4,1.5016]
[1765594031920,0.77450729,3086.5,3086.4,1.5016]
[1765594034212,1.52790729,3086.5,3086.4,1.5016]
[1765594034416,0.77450729,3086.5,3086.4,1.5016]
[1765594034617,0.00320729,3086.5,3086.4,1.5016]
[1765594046232,0.77630729,3086.5,3086.4,1.5016]
[1765594046728,0.00320729,3086.5,3086.4,1.5016]
[1765594046930,1.49400729,3086.5,3086.4,1.5016]
[1765594048121,0.77630729,3086.5,3086.4,1.5016]
[1765594049320,0.00320729,3086.5,3086.4,1.5016]
[1765594064336,0.77630729,3086.5,3086.4,1.5016]
[1765594064648,1.4908,3086.3,3086.2,3.9522]
[1765594064939,1.4908,3085.9,3085.8,3.9522]
[1765594065330,1.67682614,3086.3,3085.8,4.671]
[1765594065530,1.4908,3085.9,3085.8,4.671]
[1765594067344,0.7731,3085.9,3085.8,4.671]
[1765594068145,1.4908,3085.9,3085.8,4.671]
[1765594068746,1.4908,3085.9,3085.8,3.9522]
[1765594068943,1.4908,3085.9,3085.8,3.2078]
[1765594069352,1.4908,3085.9,3085.8,4.671]
[1765594070952,1.4908,3085.9,3085.8,3.9522]
[1765594071150,1.4908,3085.9,3085.8,4.671]
[1765594073246,1.4908,3085.9,3085.8,1.4632]
[1765594080651,0.7731,3085.9,3085.8,1.4632]
[1765594083958,7.0738,3086.2,3086.1,1.4717]
[1765594084254,7.8317,3086.2,3086.1,1.4717]
[1765594084445,8.5686,3086.2,3086.1,1.4717]
[1765594087154,4.7026,3086.2,3086.1,1.4717]
[1765594089056,1.4948,3085.9,3085.8,3.9202]
[1765594089353,1.4948,3085.9,3085.8,4.6795]
[1765594092657,0.7579,3085.9,3085.8,1.4717]
[1765594094656,1.45097251,3086.0,3085.9,1.4717]
[1765594095055,0.7579,3086.0,3085.9,1.4717]
[1765594099559,0.69307251,3086.2,3085.6,3.90087251]
[1765594099560,2.15337251,3086.2,3086.1,1.4244]
[1765594099754,3.13955958,3086.2,3086.1,1.4244]
[1765594102865,1.74408707,3086.2,3086.1,1.4244]
[1765594103067,7.7835,3086.4,3086.3,1.4302]
[1765594103265,4.90315853,3086.4,3086.3,1.4302]
[1765594103472,3.9175,3086.4,3086.3,1.4302]
[1765594103674,4.6282,3086.4,3086.3,1.4302]
[1765594103870,3.9175,3086.4,3086.3,1.4302]
[1765594105664,4.6282,3086.4,3086.3,1.4302]
[1765594105863,1.4204,3086.4,3086.3,1.4302]
[1765594107474,0.7097,3086.4,3086.3,1.4302]
[1765594108166,1.4204,3086.4,3086.3,1.4302]
[1765594108673,1.4204,3086.4,3086.3,0.7042]
[1765594108866,0.7097,3086.1,3086.0,1.8963]
[1765594111970,1.4204,3086.1,3086.0,1.8963]
[1765594112574,0.7097,3086.1,3086.0,1.8963]
[1765594116568,0.69307251,3086.3,3086.0,0.4661]
[1765594116773,2.11347251,3086.3,3086.2,1.4302]
[1765594117364,0.7097,3086.3,3086.2,1.4302]
[1765594118077,1.4204,3086.1,3086.0,1.8963]
[1765594118269,0.7097,3086.1,3086.0,1.8963]
[1765594118576,1.1393798,3086.5,3086.0,1.8963]
[1765594120078,2.1166798,3086.5,3086.4,0.7042]
[1765594121276,2.1164944,3086.5,3086.4,0.7042]
[1765594128580,0.7097,3086.1,3086.0,1.8963]
[1765594129779,2.1164944,3086.5,3086.4,0.7042]
[1765594129982,3.10146622,3086.5,3086.4,0.7042]
[1765594135290,3.10146622,3086.5,3086.0,0.4661]
[1765594135491,2.44027182,3086.4,3086.3,0.7587]
[1765594135792,2.44027182,3086.4,3086.3,1.5005]
[1765594161502,0.98497182,3086.4,3086.3,1.5005]
[1765594161807,1.4473,3086.1,3086.0,1.1899]